fUSD/lending_fUSD_20251224
["ID","MTS","AMOUNT","RATE_DAILY","PERIOD"]
[399658313,1766587858238,-151.0,0.000248,7]
[399658314,1766587858248,-151.0,0.000248,7]
[399658315,1766587858259,-151.0,0.000248,7]
[399658316,1766587858269,-688.914365,0.000248,2]
[399658317,1766587858279,-168.82958,0.000248,7]
[399658318,1766587858289,-688.914365,0.000248,2]
[399658319,1766587858298,-168.82958,0.000248,7]
[399658320,1766587858308,-168.82958,0.000248,7]
[399658321,1766587858317,-688.914365,0.000248,2]
[399658322,1766587858327,-168.82958,0.000248,7]
[399658323,1766587858337,-688.914365,0.000248,2]
[399658324,1766587858347,-151.0,0.000248,7]
[399658325,1766587858357,-191.18253,0.000248,7]
[399658326,1766587858367,-151.0,0.000248,7]
[399658327,1766587858376,-151.0,0.000248,7]
[399658328,1766587858386,-151.0,0.000248,7]
[399658329,1766587858395,-151.0,0.000248,7]
[399658330,1766587858404,-151.0,0.000248,7]
[399658331,1766587858414,-685.135947,0.000248,7]
[399658332,1766587858424,-685.135947,0.000248,7]
[399658333,1766587858435,-685.135947,0.000248,7]
[399658334,1766587858445,-55990.306715,0.000248,2]
[399658335,1766587858457,-685.135947,0.000248,7]
[399658336,1766587858468,-197.442996,0.000248,7]
[399658337,1766587858478,-197.442996,0.000248,7]
[399658338,1766587858488,-398.40831122,0.000248,2]
[399658339,1766587858504,-197.442996,0.000248,7]
[399658340,1766587858515,-197.442996,0.000248,7]
[399658341,1766587858526,-151.0,0.000248,7]
[399658342,1766587858536,-151.0,0.000248,7]
[399658343,1766587858546,-151.0,0.000248,7]
[399658344,1766587858557,-151.0,0.000248,7]
[399658345,1766587858567,-151.0,0.000248,7]
[399658346,1766587858578,-464.96,0.00024849,2]
[399658347,1766587858589,-464.86,0.00024849,2]
[399658348,1766587858598,-464.96,0.00024849,2]
[399658349,1766587858609,-464.86,0.00024849,2]
[399658350,1766587858619,-464.96,0.00024849,2]
[399658351,1766587858630,-464.86,0.00024849,2]
[399658352,1766587858641,-464.96,0.00024849,2]
[399658353,1766587858651,-464.86,0.00024849,2]
[399658354,1766587858661,-464.96,0.00024849,2]
[399658355,1766587858672,-464.86,0.00024849,2]
[399658356,1766587858682,-464.86,0.00024849,2]
[399658357,1766587858692,-464.96,0.00024849,2]
[399658358,1766587858702,-464.96,0.00024849,2]
[399658359,1766587858711,-464.86,0.00024849,2]
[399658360,1766587858722,-464.96,0.00024849,2]
[399658361,1766587858731,-464.86,0.00024849,2]
[399658362,1766587858741,-989.88,0.00024849,2]
[399658363,1766587858753,-481.42,0.00024849,2]
[399658364,1766587858763,-481.42,0.00024849,2]
[399658365,1766587858773,-481.42,0.00024849,2]
[399658366,1766587858783,-481.42,0.00024849,2]
[399658367,1766587858793,-481.42,0.00024849,2]
[399658368,1766587858804,-481.42,0.00024849,2]
[399658369,1766587858814,-481.42,0.00024849,2]
[399658370,1766587858824,-481.42,0.00024849,2]
[399658371,1766587858835,-481.42,0.00024849,2]
[399658372,1766587858845,-481.42,0.00024849,2]
[399658373,1766587858855,-481.42,0.00024849,2]
[399658374,1766587858871,-481.42,0.00024849,2]
[399658375,1766587858882,-481.42,0.00024849,2]
[399658376,1766587858892,-481.42,0.00024849,2]
[399658377,1766587858902,-481.42,0.00024849,2]
[399658378,1766587858913,-481.42,0.00024849,2]
[399658379,1766587858923,-481.42,0.00024849,2]
[399658380,1766587858934,-481.42,0.00024849,2]
[399658381,1766587858944,-481.42,0.00024849,2]
[399658382,1766587858955,-481.42,0.00024849,2]
[399658383,1766587858965,-481.42,0.00024849,2]
[399658384,1766587858975,-481.42,0.00024849,2]
[399658385,1766587858986,-481.42,0.00024849,2]
[399658386,1766587858997,-481.42,0.00024849,2]
[399658387,1766587859010,-464.86,0.00024849,2]
[399658388,1766587859021,-554.17,0.00024868,2]
[399658389,1766587859032,-554.17,0.00024868,2]
[399658390,1766587859043,-554.17,0.00024868,2]
[399658391,1766587859053,-554.17,0.00024868,2]
[399658392,1766587859064,-554.17,0.00024868,2]
[399658393,1766587859075,-554.17,0.00024868,2]
[399658394,1766587859085,-554.17,0.00024868,2]
[399658395,1766587859095,-554.17,0.00024868,2]
[399658396,1766587859106,-554.17,0.00024868,2]
[399658397,1766587859116,-1103.46,0.00024868,2]
[399658398,1766587859127,-554.17,0.00024868,2]
[399658399,1766587859137,-586.42,0.00024868,2]
[399658400,1766587859147,-553.9,0.00024868,2]
[399658401,1766587859158,-151.0,0.000249,7]
[399658402,1766587859169,-151.0,0.000249,7]
[399658403,1766587859179,-151.0,0.000249,7]
[399658404,1766587859191,-151.0,0.000249,7]
[399658405,1766587859201,-168.82958,0.000249,7]
[399658406,1766587859211,-168.82958,0.000249,7]
[399658407,1766587859223,-168.82958,0.000249,7]
[399658408,1766587859238,-168.82958,0.000249,7]
[399658409,1766587859250,-797.40688775,0.0002492,10]
[399658410,1766587859260,-400.0,0.0002497,2]
[399658411,1766587859271,-5319.9001919,0.00025,2]
[399658412,1766587859281,-169.91752112,0.00025,5]
[399658413,1766587859291,-150.0,0.00025,2]
[399658414,1766587859300,-150.0,0.00025,2]
[399658415,1766587859310,-150.0,0.00025,2]
[399658416,1766587859320,-150.0,0.00025,2]
[399658417,1766587859330,-150.0,0.00025,2]
[399658418,1766587859340,-150.0,0.00025,2]
[399658419,1766587859350,-150.0,0.00025,2]
[399658420,1766587859360,-288.717,0.00025,2]
[399658421,1766587859370,-450.0,0.00025,2]
[399658422,1766587859380,-150.0,0.00025032,2]
[399658423,1766587859390,-150.0,0.00025032,2]
[399658424,1766587859400,-320.92,0.00025032,2]
[399658425,1766587859410,-150.0,0.00025032,2]
[399658426,1766587859421,-12964.9,0.00025143,2]
[399658427,1766587859435,-554.17,0.00025196,2]
[399658428,1766587859449,-554.17,0.00025196,2]
[399658429,1766587859459,-554.17,0.00025196,2]
[399658430,1766587859469,-554.17,0.00025196,2]
[399658431,1766587859479,-554.17,0.00025196,2]
[399658432,1766587859491,-554.17,0.00025196,2]
[399658433,1766587859504,-554.17,0.00025196,2]
[399658434,1766587859514,-554.17,0.00025196,2]
[399658435,1766587859527,-554.17,0.00025196,2]
[399658436,1766587859537,-554.17,0.00025196,2]
[399658437,1766587859547,-554.17,0.00025196,2]
[399658438,1766587859557,-554.17,0.00025196,2]
[399658439,1766587859567,-554.17,0.00025196,2]
[399658440,1766587859577,-554.17,0.00025196,2]
[399658441,1766587859587,-151.35193968,0.00025211,2]
[399658442,1766587859598,-164.42994606,0.00025476,2]
[399658443,1766587859607,-554.17,0.00025525,2]
[399658444,1766587859617,-554.17,0.00025525,2]
[399658445,1766587859628,-554.17,0.00025525,2]
[399658446,1766587859642,-554.17,0.00025525,2]
[399658447,1766587859652,-554.17,0.00025525,2]
[399658448,1766587859662,-554.17,0.00025525,2]
[399658449,1766587859672,-554.17,0.00025525,2]
[399658450,1766587859682,-1383.32534736,0.000257,2]
[399658451,1766587859692,-1383.32534736,0.000257,2]
[399658452,1766587859702,-612.0,0.00025784,2]
[399658453,1766587859713,-1326.0,0.00025784,2]
[399658454,1766587859723,-1609.0,0.00025784,2]
[399658455,1766587859733,-3458.0,0.00025784,2]
[399658456,1766587859744,-1263.0,0.00025784,2]
[399658457,1766587859754,-432.0,0.00025784,2]
[399658458,1766587859764,-912.0,0.00025784,2]
[399658459,1766587859774,-1198.0,0.00025784,2]
[399658460,1766587859785,-150.0,0.00025784,2]
[399658461,1766587859795,-6533.0,0.00025784,2]
[399658462,1766587859806,-2430.0,0.00025784,2]
[399658463,1766587859817,-300.0,0.00025784,3]
[399658464,1766587859827,-300.0,0.00025784,3]
[399658465,1766587859837,-300.0,0.00025784,3]
[399658466,1766587859847,-300.0,0.00025784,3]
[399658467,1766587859857,-300.0,0.00025784,3]
[399658468,1766587859868,-151.0,0.00025784,7]
[399658469,1766587859878,-151.0,0.00025784,7]
[399658470,1766587859888,-151.0,0.00025784,7]
[399658471,1766587859899,-370.91026638,0.00025831,2]
[399658472,1766587859909,-431.42848765,0.00025831,2]
[399658473,1766587859919,-668.65185757,0.00025835,2]
[399658474,1766587859929,-196.93,0.000259,7]
[399658475,1766587859939,-464.96,0.00026,2]
[399658476,1766587859949,-464.86,0.00026,2]
[399658477,1766587859958,-4499.11102236,0.00026,2]
[399658478,1766587859968,-150.0,0.00026,2]
[399658479,1766587859978,-150.0,0.00026,2]
[399658480,1766587859988,-150.0,0.00026,2]
[399658481,1766587859999,-150.0,0.00026,2]
[399658482,1766587860009,-150.0,0.00026,2]
[399658483,1766587860020,-481.37,0.00026191,2]
[399658484,1766587860044,-481.37,0.00026191,2]
[399658485,1766587860056,-1675.35,0.00026244,30]
[399658486,1766587860067,-298.61,0.00026301,2]
[399658487,1766587860077,-170.73,0.00026329,2]
[399658488,1766587860087,-170.73,0.00026329,2]
[399658489,1766587860098,-170.73,0.00026329,2]
[399658490,1766587860109,-170.73,0.00026329,2]
[399658491,1766587860119,-170.73,0.00026329,2]
[399658492,1766587860130,-170.73,0.00026329,2]
[399658493,1766587860141,-170.73,0.00026329,2]
[399658494,1766587860151,-170.73,0.00026329,2]
[399658495,1766587860161,-170.73,0.00026329,2]
[399658496,1766587860171,-170.73,0.00026329,2]
[399658497,1766587860182,-170.73,0.00026329,2]
[399658498,1766587860192,-554.09,0.00026347,2]
[399658499,1766587860203,-27342.53075427,0.000264,2]
[399658500,1766587860214,-19768.0,0.000264,2]
[399658501,1766587860225,-537.02605007,0.00026426,2]
[399658502,1766587860235,-162797.93,0.000266,7]
[399658503,1766587860246,-170.73,0.00026657,2]
[399658504,1766587860259,-170.73,0.00026657,2]
[399658505,1766587860511,-170.73,0.00026657,2]
[399658506,1766587860523,-170.73,0.00026657,2]
[399658507,1766587860534,-170.76,0.00026657,2]
[399658508,1766587860545,-170.73,0.00026657,2]
[399658509,1766587860555,-170.73,0.00026657,2]
[399658510,1766587860565,-170.76,0.00026657,2]
[399658511,1766587860576,-170.73,0.00026657,2]
[399658512,1766587860586,-170.73,0.00026657,2]
[399658513,1766587860596,-170.73,0.00026657,2]
[399658514,1766587860607,-170.73,0.00026657,2]
[399658515,1766587860617,-170.73,0.00026657,2]
[399658516,1766587860627,-170.73,0.00026657,2]
[399658517,1766587860637,-170.73,0.00026657,2]
[399658518,1766587860647,-170.73,0.00026657,2]
[399658519,1766587860657,-170.73,0.00026657,2]
[399658520,1766587860668,-170.73,0.00026657,2]
[399658521,1766587860683,-170.73,0.00026657,2]
[399658522,1766587860694,-170.73,0.00026657,2]
[399658523,1766587860705,-170.73,0.00026657,2]
[399658524,1766587860716,-170.73,0.00026657,2]
[399658525,1766587860726,-170.73,0.00026657,2]
[399658526,1766587860737,-170.73,0.00026657,2]
[399658527,1766587860747,-170.73,0.00026657,2]
[399658528,1766587860758,-987.97,0.00026676,2]
[399658529,1766587860769,-150.0,0.00026822,2]
[399658530,1766587860779,-150.0,0.00026822,2]
[399658531,1766587860789,-150.0,0.00026822,2]
[399658532,1766587860799,-150.0,0.00026822,2]
[399658533,1766587860811,-200.0,0.00027,2]
[399658534,1766587860822,-2000.0,0.00027,2]
[399658535,1766587860832,-500.0,0.00027,2]
[399658536,1766587860843,-2423.465863,0.0002701,2]
[399658537,1766587860854,-1472.82,0.000271,14]
[399658538,1766587860864,-5526.0,0.000271,3]
[399658539,1766587860875,-12964.9,0.00027123,2]
[399658540,1766587860885,-3666.24,0.00027123,2]
[399658541,1766587860896,-150.0,0.00027151,2]
[399658542,1766587860906,-554.17,0.00027169,2]
[399658543,1766587860916,-554.17,0.00027169,2]
[399658544,1766587860927,-554.17,0.00027169,2]
[399658545,1766587860937,-554.17,0.00027169,2]
[399658546,1766587860948,-554.17,0.00027169,2]
[399658547,1766587860958,-554.17,0.00027169,2]
[399658548,1766587860969,-554.17,0.00027169,2]
[399658549,1766587860980,-554.17,0.00027169,2]
[399658550,1766587860990,-554.17,0.00027169,2]
[399658551,1766587861001,-554.17,0.00027169,2]
[399658552,1766587861012,-554.17,0.00027169,2]
[399658553,1766587861022,-554.17,0.00027169,2]
[399658554,1766587861038,-554.17,0.00027169,2]
[399658555,1766587861049,-554.17,0.00027169,2]
[399658556,1766587861059,-554.17,0.00027169,2]
[399658557,1766587861070,-554.17,0.00027169,2]
[399658558,1766587861081,-554.17,0.00027169,2]
[399658559,1766587861093,-554.17,0.00027169,2]
[399658560,1766587861104,-554.17,0.00027169,2]
[399658561,1766587861117,-554.17,0.00027169,2]
[399658562,1766587861128,-384.63394623,0.000272,2]
[399658563,1766587861139,-447.3913417,0.000272,2]
[399658564,1766587861150,-770.08786732,0.00027277,2]
[399658565,1766587861161,-150.0,0.00027369,2]
[399658566,1766587861172,-8078.46780557,0.0002739,2]
[399658567,1766587861183,-4089.34865562,0.0002739,2]
[399658568,1766587861193,-349.6,0.00027397,4]
[399658569,1766587861203,-151.0,0.00027397,2]
[399658570,1766587861214,-874.57,0.00027397,16]
[399658571,1766587861225,-872.07,0.00027397,2]
[399658572,1766587861236,-300.0,0.00027397,2]
[399658573,1766587861246,-274.672658,0.00027397,7]
[399658574,1766587861257,-274.672658,0.00027397,7]
[399658575,1766587861267,-274.672658,0.00027397,7]
[399658576,1766587861278,-274.672658,0.00027397,7]
[399658577,1766587861288,-274.672658,0.00027397,7]
[399658578,1766587861298,-274.672658,0.00027397,7]
[399658579,1766587861309,-274.672658,0.00027397,7]
[399658580,1766587861319,-274.672658,0.00027397,7]
[399658581,1766587861329,-274.672658,0.00027397,7]
[399658582,1766587861340,-274.672658,0.00027397,7]
[399658583,1766587861350,-274.672658,0.00027397,7]
[399658584,1766587861361,-274.672658,0.00027397,7]
[399658585,1766587861371,-274.672658,0.00027397,7]
[399658586,1766587861382,-274.672658,0.00027397,7]
[399658587,1766587861393,-274.672658,0.00027397,7]
[399658588,1766587861404,-274.672658,0.00027397,7]
[399658589,1766587861414,-161.852356,0.00027397,7]
[399658590,1766587861425,-152.616568,0.00027397,7]
[399658591,1766587861435,-500.0,0.00027397,20]
[399658592,1766587861446,-549.8160661,0.00027397,5]
[399658593,1766587861458,-150.0,0.00027397,5]
[399658594,1766587861468,-170.76,0.00027479,2]
[399658595,1766587861479,-341.1,0.00027479,2]
[399658596,1766587861490,-189.46,0.00027479,2]
[399658597,1766587861501,-200.09993573,0.000275,2]
[399658598,1766587861511,-546.62751736,0.000275,2]
[399658599,1766587861520,-481.37,0.00027534,2]
[399658600,1766587861531,-150.0,0.00027644,2]
[399658601,1766587861546,-150.0,0.00027644,2]
[399658602,1766587861557,-150.0,0.00027644,2]
[399658603,1766587861567,-14397.82,0.00027671,2]
[399658604,1766587861577,-196.93,0.000277,7]
[399658605,1766587861588,-5000.0,0.0002779,2]
[399658606,1766587861598,-5000.0,0.0002779,2]
[399658607,1766587861609,-5000.0,0.0002779,2]
[399658608,1766587861619,-5000.0,0.0002779,2]
[399658609,1766587861629,-5000.0,0.0002779,2]
[399658610,1766587861639,-685.66043143,0.00027852,2]
[399658611,1766587861649,-5526.0,0.000279,5]
[399658612,1766587861660,-250.0,0.00027945,5]
[399658613,1766587861670,-356.94,0.00027972,2]
[399658614,1766587861680,-178.5,0.00027972,2]
[399658615,1766587861691,-178.5,0.00027972,2]
[399658616,1766587861700,-357.0,0.00027972,2]
[399658617,1766587861710,-178.5,0.00027972,2]
[399658618,1766587861721,-178.5,0.00027972,2]
[399658619,1766587861731,-178.5,0.00027972,2]
[399658620,1766587861742,-178.5,0.00027972,2]
[399658621,1766587861753,-178.5,0.00027972,2]
[399658622,1766587861764,-178.5,0.00027972,2]
[399658623,1766587861775,-178.5,0.00027972,2]
[399658624,1766587861786,-178.5,0.00027972,2]
[399658625,1766587861797,-178.5,0.00027972,2]
[399658626,1766587861808,-178.5,0.00027972,2]
[399658627,1766587861820,-178.5,0.00027972,2]
[399658628,1766587861830,-178.5,0.00027972,2]
[399658629,1766587861841,-178.5,0.00027972,2]
[399658630,1766587861851,-178.5,0.00027972,2]
[399658631,1766587861861,-178.5,0.00027972,2]
[399658632,1766587861872,-178.5,0.00027972,2]
[399658633,1766587861883,-178.5,0.00027972,2]
[399658634,1766587861893,-178.5,0.00027972,2]
[399658635,1766587861904,-178.5,0.00027972,2]
[399658636,1766587861915,-178.5,0.00027972,2]
[399658637,1766587861926,-150.0,0.00027973,2]
[399658638,1766587861936,-150.0,0.00027973,2]
[399658639,1766587861946,-150.0,0.00027973,2]
[399658640,1766587861958,-150.0,0.00027973,2]
[399658641,1766587861969,-150.0,0.00027973,2]
[399658642,1766587861980,-150.0,0.00027973,2]
[399658643,1766587861990,-150.0,0.00027973,2]
[399658644,1766587862001,-150.0,0.00027973,2]
[399658645,1766587862012,-150.0,0.00027973,2]
[399658646,1766587862023,-150.0,0.00027973,2]
[399658647,1766587862033,-150.0,0.00027973,2]
[399658648,1766587862044,-150.0,0.00027973,2]
[399658649,1766587862054,-150.0,0.00027973,2]
[399658650,1766587862065,-150.0,0.00027973,2]
[399658651,1766587862076,-150.0,0.00027973,2]
[399658652,1766587862086,-150.0,0.00027973,2]
[399658653,1766587862097,-150.0,0.00027973,2]
[399658654,1766587862107,-70957.91863836,0.00028,2]
[399658655,1766587862117,-50598.41821355,0.00028,2]
[399658656,1766587862128,-100000.0,0.00028,2]
[399658657,1766587862138,-688.914365,0.00028,2]
[399658658,1766587862149,-688.914365,0.00028,2]
[399658659,1766587862159,-688.914365,0.00028,2]
[399658660,1766587862169,-688.914365,0.00028,2]
[399658661,1766587862180,-151.0,0.00028,7]
[399658662,1766587862190,-151.0,0.00028,7]
[399658663,1766587862200,-151.0,0.00028,7]
[399658664,1766587862211,-151.0,0.00028,7]
[399658665,1766587862221,-151.0,0.00028,7]
[399658666,1766587862232,-151.0,0.00028,7]
[399658667,1766587862242,-685.135947,0.00028,7]
[399658668,1766587862253,-685.135947,0.00028,7]
[399658669,1766587862263,-685.135947,0.00028,7]
[399658670,1766587862274,-685.135947,0.00028,7]
[399658671,1766587862285,-197.442996,0.00028,7]
[399658672,1766587862296,-197.442996,0.00028,7]
[399658673,1766587862307,-197.442996,0.00028,7]
[399658674,1766587862317,-197.442996,0.00028,7]
[399658675,1766587862327,-233.37032883,0.00028,7]
[399658676,1766587862337,-151.0,0.00028,7]
[399658677,1766587862347,-151.0,0.00028,7]
[399658678,1766587862357,-151.0,0.00028,7]
[399658679,1766587862367,-255.196476,0.00028,7]
[399658680,1766587862378,-170.73,0.00028301,2]
[399658681,1766587862389,-178.5,0.00028301,2]
[399658682,1766587862399,-178.5,0.00028301,2]
[399658683,1766587862410,-178.5,0.00028301,2]
[399658684,1766587862421,-178.5,0.00028301,2]
[399658685,1766587862431,-178.5,0.00028301,2]
[399658686,1766587862441,-178.5,0.00028301,2]
[399658687,1766587862453,-178.5,0.00028301,2]
[399658688,1766587862465,-178.5,0.00028301,2]
[399658689,1766587862476,-178.5,0.00028301,2]
[399658690,1766587862487,-178.5,0.00028301,2]
[399658691,1766587862499,-178.5,0.00028301,2]
[399658692,1766587862510,-178.5,0.00028301,2]
[399658693,1766587862521,-178.5,0.00028301,2]
[399658694,1766587862533,-178.5,0.00028301,2]
[399658695,1766587862544,-178.5,0.00028301,2]
[399658696,1766587862554,-178.5,0.00028301,2]
[399658697,1766587862564,-178.5,0.00028301,2]
[399658698,1766587862574,-178.5,0.00028301,2]
[399658699,1766587862584,-357.0,0.00028301,2]
[399658700,1766587862594,-178.5,0.00028301,2]
[399658701,1766587862604,-178.5,0.00028301,2]
[399658702,1766587862614,-350.3296444,0.00028493,5]
[399658703,1766587862624,-398.86540225,0.00028569,2]
[399658704,1766587862634,-463.94482134,0.00028569,2]
[399658705,1766587862644,-693.3919763,0.00028574,2]
[399658706,1766587862654,-151.0,0.00028766,2]
[399658707,1766587862665,-612.0,0.00028784,2]
[399658708,1766587862674,-1326.0,0.00028784,2]
[399658709,1766587862684,-1609.0,0.00028784,2]
[399658710,1766587862694,-3458.0,0.00028784,2]
[399658711,1766587862703,-1263.0,0.00028784,2]
[399658712,1766587862713,-432.0,0.00028784,2]
[399658713,1766587862723,-912.0,0.00028784,2]
[399658714,1766587862733,-1198.0,0.00028784,2]
[399658715,1766587862743,-6533.0,0.00028784,2]
[399658716,1766587862753,-2430.0,0.00028784,2]
[399658717,1766587862763,-209.0,0.0002882,30]
[399658718,1766587862773,-500.0,0.00028822,2]
[399658719,1766587862783,-211.90100682,0.00028908,2]
[399658720,1766587862794,-5580.90701602,0.00028947,2]
[399658721,1766587862805,-5000.0,0.00028947,2]
[399658722,1766587863230,-5000.0,0.00028947,2]
[399658723,1766587863249,-5000.0,0.00028947,2]
[399658724,1766587863265,-5007.39379568,0.00029,2]
[399658725,1766587863276,-150.0,0.00029,2]
[399658726,1766587863286,-150.0,0.00029,2]
[399658727,1766587863296,-150.0,0.00029,2]
[399658728,1766587863307,-146107.67291205,0.00029,2]
[399658729,1766587863729,-6725.39,0.00029,2]
[399658730,1766587863742,-919.39818052,0.00029,2]
[399658731,1766587864139,-564.0,0.00016784,2]
[399658732,1766587864151,-500.0,0.000181,2]
[399658733,1766587864161,-500.0,0.000181,2]
[399658734,1766587864171,-500.0,0.000181,2]
[399658735,1766587864181,-500.0,0.000181,2]
[399658736,1766587864191,-500.0,0.000181,2]
[399658737,1766587864201,-564.0,0.00019784,2]
[399658738,1766587864212,-564.0,0.00022784,2]
[399658739,1766587864222,-554.17,0.00023717,2]
[399658740,1766587864234,-46247.53890743,0.00029,2]
[399658741,1766587864244,-550.0,0.00029,2]
[399658742,1766587864255,-178.5,0.00029123,2]
[399658743,1766587864265,-178.5,0.00029123,2]
[399658744,1766587864275,-178.5,0.00029123,2]
[399658745,1766587864286,-178.5,0.00029123,2]
[399658746,1766587864296,-178.5,0.00029123,2]
[399658747,1766587864306,-170.76,0.00029123,2]
[399658748,1766587864315,-170.76,0.00029123,2]
[399658749,1766587864325,-178.5,0.00029123,2]
[399658750,1766587864335,-178.5,0.00029123,2]
[399658751,1766587864345,-170.76,0.00029123,2]
[399658752,1766587864355,-178.5,0.00029123,2]
[399658753,1766587864365,-170.76,0.00029123,2]
[399658754,1766587864375,-473.72,0.00029123,2]
[399658755,1766587864385,-170.76,0.00029123,2]
[399658756,1766587864394,-170.76,0.00029123,2]
[399658757,1766587864404,-170.76,0.00029123,2]
[399658758,1766587864415,-341.43,0.00029123,2]
[399658759,1766587864425,-170.76,0.00029123,2]
[399658760,1766587864435,-341.52,0.00029123,2]
[399658761,1766587864445,-178.5,0.00029123,2]
[399658762,1766587864457,-170.73,0.00029123,2]
[399658763,1766587864470,-170.73,0.00029123,2]
[399658764,1766587864479,-164.42994606,0.00029188,2]
[399658765,1766587864490,-13196.42666875,0.000295,7]
[399658766,1766587864499,-200000.0,0.000295,2]
[399658767,1766587864512,-151.0,0.000295,7]
[399658768,1766587864522,-151.0,0.000295,7]
[399658769,1766587864533,-151.0,0.000295,7]
[399658770,1766587864543,-153.598111,0.000295,7]
[399658771,1766587864555,-1502.791178,0.000295,2]
[399658772,1766587864565,-537.02605007,0.00029601,2]
[399658773,1766587864575,-1075.15443169,0.0002971,3]
[399658774,1766587864586,-770.08786732,0.00029884,2]
[399658775,1766587864596,-151.0,0.00029899,7]
[399658776,1766587864606,-151.0,0.00029899,7]
[399658777,1766587864615,-151.0,0.00029899,7]
[399658778,1766587864625,-274.672658,0.00029899,7]
[399658779,1766587864635,-274.672658,0.00029899,7]
[399658780,1766587864645,-274.672658,0.00029899,7]
[399658781,1766587864654,-274.672663,0.00029899,7]
[399658782,1766587864664,-151.0,0.00029899,7]
[399658783,1766587864675,-168.82958,0.00029899,7]
[399658784,1766587864686,-168.82958,0.00029899,7]
[399658785,1766587864696,-168.82958,0.00029899,7]
[399658786,1766587864707,-168.829581,0.00029899,7]
[399658787,1766587864718,-151.0,0.00029899,7]
[399658788,1766587864729,-151.0,0.00029899,7]
[399658789,1766587864739,-151.0,0.00029899,7]
[399658790,1766587864750,-78479.35598264,0.000299,2]
[399658791,1766587864760,-481.11077973,0.00029938,2]
[399658792,1766587864770,-235.97210478,0.0002999,2]
[399658793,1766587864780,-250.0,0.0003,30]
[399658794,1766587864790,-290.0,0.0003,2]
[399658795,1766587864800,-16372.3983691,0.0003,2]
[399658796,1766587864809,-19766.64928641,0.0003,2]
[399658797,1766587864819,-1807.38217057,0.0003,2]
[399658798,1766587864828,-438.80696657,0.0003,2]
[399658799,1766587864838,-162.11910961,0.0003,2]
[399658800,1766587864848,-4691.86690387,0.0003,2]
[399658801,1766587864858,-2000.0,0.0003,3]
[399658802,1766587864869,-14240.33907812,0.0003,3]
[399658803,1766587864879,-161.19073963,0.0003,5]
[399658804,1766587864888,-1100.0,0.0003,2]
[399658805,1766587864898,-1000.0,0.0003,12]
[399658806,1766587864907,-56660.96617412,0.0003,3]
[399658807,1766587864917,-150.0,0.0003,2]
[399658808,1766587864927,-186.82,0.0003,22]
[399658809,1766587864937,-1500.0,0.0003,2]
[399658810,1766587864947,-1067.62233822,0.0003013,2]
[399658811,1766587864958,-13775.48097491,0.0003013,2]
[399658812,1766587864968,-630.4921551,0.0003013,2]